[Event "Titled Tuesday Blitz June 6 Early 2023"]
[White "Fridman, Daniel"]
[Black "Bruedigam, Martin"]
[WhiteFideId "11600454"]
[BlackFideId "24608033"]
[WhiteElo "2538"]
[BlackElo "2331"]
[Result "1-0"]
[Round "2"]
[TimeControl "180+2"]
[Date "2023.06.06"]
[WhiteClock "0:01:06"]
[BlackClock "0:00:04"]
[Board "34"]

1. d4 {[%clk 0:03:00]}  d5 {[%clk 0:02:58]} 2. Nf3 {[%clk 0:03:01]}  Nf6 {[%clk 0:02:58]} 3. c4 {[%clk 0:03:01]}  e6 {[%clk 0:02:59]} 4. g3 {[%clk 0:03:00]}  Bb4+ {[%clk 0:02:58]} 5. Bd2 {[%clk 0:03:00]}  Be7 {[%clk 0:02:59]} 6. Bg2 {[%clk 0:03:00]}  O-O {[%clk 0:03:00]} 7. O-O {[%clk 0:02:58]}  c6 {[%clk 0:03:00]} 8. Nc3 {[%clk 0:02:56]}  b6 {[%clk 0:02:59]} 9. Bf4 {[%clk 0:02:56]}  Ba6 {[%clk 0:02:59]} 10. Ne5 {[%clk 0:02:46]}  Nfd7 {[%clk 0:02:51]} 11. Nxd7 {[%clk 0:02:29]}  Qxd7 {[%clk 0:02:48]} 12. cxd5 {[%clk 0:02:25]}  cxd5 {[%clk 0:02:48]} 13. e4 {[%clk 0:02:23]}  Bxf1 {[%clk 0:02:25]} 14. Qxf1 {[%clk 0:02:22]}  Nc6 {[%clk 0:01:25]} 15. exd5 {[%clk 0:02:17]}  Nxd4 {[%clk 0:01:20]} 16. Rd1 {[%clk 0:02:15]}  Bf6 {[%clk 0:01:15]} 17. Ne4 {[%clk 0:02:10]}  e5 {[%clk 0:01:15]} 18. Nxf6+ {[%clk 0:02:07]}  gxf6 {[%clk 0:01:16]} 19. Bh6 {[%clk 0:02:07]}  Rfc8 {[%clk 0:01:14]} 20. f4 {[%clk 0:01:56]}  Rc2 {[%clk 0:00:58]} 21. fxe5 {[%clk 0:01:53]}  fxe5 {[%clk 0:00:59]} 22. Be4 {[%clk 0:01:37]}  Ne2+ {[%clk 0:00:34]} 23. Kh1 {[%clk 0:01:35]}  Rac8 {[%clk 0:00:14]} 24. Bf5 {[%clk 0:01:24]}  Qb5 {[%clk 0:00:04]} 25. Bxc8 {[%clk 0:01:06]} 1-0


[Site "https://www.chess.com"]

[Event "Titled Tuesday Blitz June 6 Early 2023"]
[White "Richter, Paul"]
[Black "Hambleton, Aman"]
[WhiteFideId "2046350"]
[BlackFideId "2606577"]
[WhiteElo "2525"]
[BlackElo "2511"]
[Result "0-1"]
[Round "2"]
[TimeControl "180+2"]
[Date "2023.06.06"]
[WhiteClock "0:00:05"]
[BlackClock "0:00:05"]
[Board "43"]

1. e4 {[%clk 0:03:00]}  c6 {[%clk 0:02:57]} 2. Nc3 {[%clk 0:03:00]}  d5 {[%clk 0:02:57]} 3. Nf3 {[%clk 0:03:01]}  dxe4 {[%clk 0:02:56]} 4. Nxe4 {[%clk 0:03:02]}  Nf6 {[%clk 0:02:57]} 5. Qe2 {[%clk 0:03:02]}  Nxe4 {[%clk 0:02:56]} 6. Qxe4 {[%clk 0:03:03]}  Qa5 {[%clk 0:02:57]} 7. Bc4 {[%clk 0:03:00]}  Bf5 {[%clk 0:02:57]} 8. Qf4 {[%clk 0:03:00]}  e6 {[%clk 0:02:55]} 9. c3 {[%clk 0:02:58]}  Qd8 {[%clk 0:02:45]} 10. g4 {[%clk 0:01:20]}  Bg6 {[%clk 0:02:20]} 11. d4 {[%clk 0:01:03]}  Bd6 {[%clk 0:02:17]} 12. Qe3 {[%clk 0:01:03]}  Nd7 {[%clk 0:02:10]} 13. Ne5 {[%clk 0:00:42]}  Nxe5 {[%clk 0:01:58]} 14. dxe5 {[%clk 0:00:43]}  Be7 {[%clk 0:01:59]} 15. Bd2 {[%clk 0:00:38]}  h5 {[%clk 0:01:55]} 16. g5 {[%clk 0:00:24]}  Qb6 {[%clk 0:01:30]} 17. Qxb6 {[%clk 0:00:20]}  axb6 {[%clk 0:01:31]} 18. h4 {[%clk 0:00:19]}  b5 {[%clk 0:01:28]} 19. Bb3 {[%clk 0:00:19]}  Be4 {[%clk 0:00:54]} 20. Rh3 {[%clk 0:00:18]}  O-O-O {[%clk 0:00:51]} 21. O-O-O {[%clk 0:00:18]}  Bf5 {[%clk 0:00:46]} 22. Rh2 {[%clk 0:00:17]}  Rd3 {[%clk 0:00:25]} 23. Be3 {[%clk 0:00:17]}  Kc7 {[%clk 0:00:15]} 24. Rxd3 {[%clk 0:00:16]}  Bxd3 {[%clk 0:00:16]} 25. f4 {[%clk 0:00:16]}  Ra8 {[%clk 0:00:05]} 26. Rd2 {[%clk 0:00:15]}  Bc4 {[%clk 0:00:06]} 27. Kb1 {[%clk 0:00:12]}  Bd5 {[%clk 0:00:02]} 28. Bf2 {[%clk 0:00:11]}  f6 {[%clk 0:00:01]} 29. exf6 {[%clk 0:00:10]}  gxf6 {[%clk 0:00:02]} 30. Bd4 {[%clk 0:00:10]}  fxg5 {[%clk 0:00:02]} 31. Be5+ {[%clk 0:00:10]}  Bd6 {[%clk 0:00:02]} 32. Bxd6+ {[%clk 0:00:10]}  Kxd6 {[%clk 0:00:03]} 33. fxg5 {[%clk 0:00:10]}  Rf8 {[%clk 0:00:03]} 34. Bxd5 {[%clk 0:00:08]}  cxd5 {[%clk 0:00:03]} 35. Rg2 {[%clk 0:00:08]}  Ke7 {[%clk 0:00:04]} 36. Kc2 {[%clk 0:00:07]}  Rf4 {[%clk 0:00:04]} 37. Rh2 {[%clk 0:00:08]}  e5 {[%clk 0:00:03]} 38. Kd3 {[%clk 0:00:08]}  Ke6 {[%clk 0:00:03]} 39. Ke3 {[%clk 0:00:08]}  Rg4 {[%clk 0:00:03]} 40. Kf3 {[%clk 0:00:09]}  Kf5 {[%clk 0:00:03]} 41. Ke3 {[%clk 0:00:07]}  Rg3+ {[%clk 0:00:01]} 42. Ke2 {[%clk 0:00:08]}  Rg4 {[%clk 0:00:01]} 43. a3 {[%clk 0:00:08]}  Ke4 {[%clk 0:00:01]} 44. Kd2 {[%clk 0:00:08]}  d4 {[%clk 0:00:01]} 45. cxd4 {[%clk 0:00:08]}  Kxd4 {[%clk 0:00:02]} 46. Ke2 {[%clk 0:00:08]}  e4 {[%clk 0:00:03]} 47. Kf2 {[%clk 0:00:08]}  e3+ {[%clk 0:00:03]} 48. Kf3 {[%clk 0:00:09]}  Kd3 {[%clk 0:00:03]} 49. Rh1 {[%clk 0:00:09]}  e2 {[%clk 0:00:03]} 50. Re1 {[%clk 0:00:10]}  Re4 {[%clk 0:00:02]} 51. g6 {[%clk 0:00:08]}  Re3+ {[%clk 0:00:03]} 52. Kf2 {[%clk 0:00:07]}  Re6 {[%clk 0:00:02]} 53. g7 {[%clk 0:00:07]}  Rf6+ {[%clk 0:00:02]} 54. Kg3 {[%clk 0:00:05]}  Rg6+ {[%clk 0:00:03]} 55. Kf4 {[%clk 0:00:06]}  Kd2 {[%clk 0:00:02]} 56. Rxe2+ {[%clk 0:00:04]}  Kxe2 {[%clk 0:00:03]} 57. Kf5 {[%clk 0:00:02]}  Rxg7 {[%clk 0:00:03]} 58. Ke5 {[%clk 0:00:03]}  Rg4 {[%clk 0:00:04]} 59. Kd5 {[%clk 0:00:04]}  b4 {[%clk 0:00:04]} 60. Kc5 {[%clk 0:00:05]}  bxa3 {[%clk 0:00:05]} 61. bxa3 {[%clk 0:00:05]}  Kf3 {[%clk 0:00:05]} 0-1


[Site "https://www.chess.com"]

[Event "Titled Tuesday Blitz June 6 Early 2023"]
[White "Bryakin, Mikhail"]
[Black "Chylewski, Patryk"]
[WhiteFideId "4165314"]
[BlackFideId "1186191"]
[WhiteElo "2464"]
[BlackElo "2163"]
[Result "1-0"]
[Round "2"]
[TimeControl "180+2"]
[Date "2023.06.06"]
[WhiteClock "0:00:19"]
[BlackClock "0:00:05"]
[Board "44"]

1. e4 {[%clk 0:02:56]}  c6 {[%clk 0:02:55]} 2. d4 {[%clk 0:02:44]}  d5 {[%clk 0:02:55]} 3. e5 {[%clk 0:02:45]}  c5 {[%clk 0:02:55]} 4. dxc5 {[%clk 0:02:45]}  e6 {[%clk 0:02:55]} 5. Bb5+ {[%clk 0:02:43]}  Nd7 {[%clk 0:02:43]} 6. b4 {[%clk 0:02:41]}  a5 {[%clk 0:02:38]} 7. c3 {[%clk 0:02:29]}  Qc7 {[%clk 0:02:32]} 8. Nf3 {[%clk 0:02:27]}  Ne7 {[%clk 0:02:32]} 9. O-O {[%clk 0:02:22]}  Ng6 {[%clk 0:02:29]} 10. Qd4 {[%clk 0:02:21]}  Be7 {[%clk 0:02:29]} 11. Re1 {[%clk 0:02:16]}  O-O {[%clk 0:02:29]} 12. Bxd7 {[%clk 0:02:12]}  Bxd7 {[%clk 0:02:28]} 13. a3 {[%clk 0:02:10]}  f6 {[%clk 0:02:22]} 14. Bf4 {[%clk 0:02:10]}  Qc6 {[%clk 0:02:16]} 15. Nbd2 {[%clk 0:01:58]}  Nxf4 {[%clk 0:02:12]} 16. Qxf4 {[%clk 0:01:58]}  Rfb8 {[%clk 0:02:03]} 17. Nd4 {[%clk 0:01:53]}  Qc7 {[%clk 0:01:50]} 18. N2f3 {[%clk 0:01:47]}  b6 {[%clk 0:01:46]} 19. c6 {[%clk 0:01:46]}  Bxc6 {[%clk 0:01:44]} 20. Nxe6 {[%clk 0:01:46]}  Qd7 {[%clk 0:01:44]} 21. Nfd4 {[%clk 0:01:41]}  fxe5 {[%clk 0:01:41]} 22. Qxe5 {[%clk 0:01:29]}  Bf6 {[%clk 0:01:41]} 23. Qg3 {[%clk 0:01:20]}  Re8 {[%clk 0:01:35]} 24. h4 {[%clk 0:01:12]}  Re7 {[%clk 0:01:18]} 25. Ng5 {[%clk 0:01:06]}  Bb7 {[%clk 0:00:46]} 26. h5 {[%clk 0:01:04]}  h6 {[%clk 0:00:45]} 27. Ngf3 {[%clk 0:01:04]}  Qe8 {[%clk 0:00:40]} 28. Rxe7 {[%clk 0:01:03]}  Qxe7 {[%clk 0:00:41]} 29. Re1 {[%clk 0:01:03]}  Qf7 {[%clk 0:00:39]} 30. Nf5 {[%clk 0:00:57]}  Qxh5 {[%clk 0:00:32]} 31. Nxg7 {[%clk 0:00:57]}  Qf7 {[%clk 0:00:16]} 32. Nf5+ {[%clk 0:00:47]}  Kh7 {[%clk 0:00:16]} 33. Nd6 {[%clk 0:00:43]}  Qd7 {[%clk 0:00:13]} 34. Nxb7 {[%clk 0:00:38]}  Qxb7 {[%clk 0:00:14]} 35. Re6 {[%clk 0:00:38]}  Qg7 {[%clk 0:00:09]} 36. Qd6 {[%clk 0:00:21]}  Bxc3 {[%clk 0:00:07]} 37. Re7 {[%clk 0:00:21]}  axb4 {[%clk 0:00:06]} 38. Rxg7+ {[%clk 0:00:21]}  Bxg7 {[%clk 0:00:06]} 39. Qxb4 {[%clk 0:00:20]}  Rc8 {[%clk 0:00:04]} 40. Qxb6 {[%clk 0:00:19]}  Bf8 {[%clk 0:00:05]} 41. Qb7+ {[%clk 0:00:19]} 1-0


[Site "https://www.chess.com"]

[Event "Titled Tuesday Blitz June 6 Early 2023"]
[White "Molina, Roberto Junio Brito"]
[Black "Xu, Daniel"]
[WhiteFideId "2109450"]
[BlackFideId "2627345"]
[WhiteElo "2376"]
[BlackElo "1980"]
[Result "1-0"]
[Round "2"]
[TimeControl "180+2"]
[Date "2023.06.06"]
[WhiteClock "0:00:09"]
[BlackClock "0:00:02"]
[Board "46"]

1. e4 {[%clk 0:03:00]}  c5 {[%clk 0:03:00]} 2. Nf3 {[%clk 0:03:00]}  d6 {[%clk 0:03:00]} 3. d4 {[%clk 0:02:59]}  cxd4 {[%clk 0:03:01]} 4. Nxd4 {[%clk 0:02:59]}  Nf6 {[%clk 0:03:01]} 5. Nc3 {[%clk 0:02:59]}  a6 {[%clk 0:03:02]} 6. Be3 {[%clk 0:02:57]}  e5 {[%clk 0:03:02]} 7. Nb3 {[%clk 0:02:57]}  Be6 {[%clk 0:03:03]} 8. f3 {[%clk 0:02:57]}  h5 {[%clk 0:03:03]} 9. Qd2 {[%clk 0:02:57]}  Nbd7 {[%clk 0:03:03]} 10. O-O-O {[%clk 0:02:57]}  Rc8 {[%clk 0:03:02]} 11. Kb1 {[%clk 0:02:56]}  b5 {[%clk 0:02:58]} 12. Nd5 {[%clk 0:02:43]}  Bxd5 {[%clk 0:02:57]} 13. exd5 {[%clk 0:02:44]}  Nb6 {[%clk 0:02:36]} 14. Bxb6 {[%clk 0:02:21]}  Qxb6 {[%clk 0:02:36]} 15. Bd3 {[%clk 0:02:18]}  g6 {[%clk 0:02:23]} 16. f4 {[%clk 0:02:09]}  Bh6 {[%clk 0:02:19]} 17. g3 {[%clk 0:02:09]}  O-O {[%clk 0:02:16]} 18. Rhe1 {[%clk 0:02:06]}  Rfe8 {[%clk 0:02:06]} 19. Bf1 {[%clk 0:01:55]}  exf4 {[%clk 0:01:33]} 20. gxf4 {[%clk 0:01:40]}  Ne4 {[%clk 0:01:32]} 21. Qb4 {[%clk 0:01:36]}  Nf2 {[%clk 0:01:23]} 22. Rc1 {[%clk 0:01:22]}  Ng4 {[%clk 0:01:01]} 23. Bh3 {[%clk 0:01:18]}  Rxe1 {[%clk 0:00:52]} 24. Rxe1 {[%clk 0:01:17]}  Qf2 {[%clk 0:00:52]} 25. Qd2 {[%clk 0:00:41]}  Qxd2 {[%clk 0:00:42]} 26. Nxd2 {[%clk 0:00:42]}  Bxf4 {[%clk 0:00:42]} 27. Nf3 {[%clk 0:00:39]}  Rc5 {[%clk 0:00:32]} 28. Re2 {[%clk 0:00:25]}  Rxd5 {[%clk 0:00:28]} 29. c3 {[%clk 0:00:25]}  Ne3 {[%clk 0:00:24]} 30. a4 {[%clk 0:00:22]}  Rd1+ {[%clk 0:00:24]} 31. Ka2 {[%clk 0:00:22]}  bxa4 {[%clk 0:00:17]} 32. Nd4 {[%clk 0:00:17]}  g5 {[%clk 0:00:13]} 33. Bd7 {[%clk 0:00:17]}  a3 {[%clk 0:00:12]} 34. Kxa3 {[%clk 0:00:16]}  Nc4+ {[%clk 0:00:09]} 35. Kb3 {[%clk 0:00:16]}  Ne5 {[%clk 0:00:09]} 36. Bc8 {[%clk 0:00:15]}  a5 {[%clk 0:00:09]} 37. Nf5 {[%clk 0:00:13]}  d5 {[%clk 0:00:06]} 38. Bb7 {[%clk 0:00:11]}  Kf8 {[%clk 0:00:04]} 39. Nd4 {[%clk 0:00:11]}  f6 {[%clk 0:00:03]} 40. Bxd5 {[%clk 0:00:12]}  Kg7 {[%clk 0:00:02]} 41. Nf5+ {[%clk 0:00:09]}  Kg6 {[%clk 0:00:02]} 42. Be4 {[%clk 0:00:10]}  Kf7 {[%clk 0:00:02]} 43. c4 {[%clk 0:00:09]} 1-0


[Site "https://www.chess.com"]

[Event "Titled Tuesday Blitz June 6 Early 2023"]
[White "Reprintsev, Alexander"]
[Black "Tejedor Fuente, Enrique"]
[WhiteFideId "14100541"]
[BlackFideId "2299100"]
[WhiteElo "2229"]
[BlackElo "2496"]
[Result "0-1"]
[Round "2"]
[TimeControl "180+2"]
[Date "2023.06.06"]
[WhiteClock "0:01:00"]
[BlackClock "0:00:28"]
[Board "47"]

1. e4 {[%clk 0:02:58]}  e6 {[%clk 0:02:54]} 2. d4 {[%clk 0:02:57]}  d5 {[%clk 0:02:49]} 3. Nc3 {[%clk 0:02:57]}  Nf6 {[%clk 0:02:48]} 4. Bg5 {[%clk 0:02:56]}  Be7 {[%clk 0:02:48]} 5. e5 {[%clk 0:02:56]}  Nfd7 {[%clk 0:02:46]} 6. h4 {[%clk 0:02:56]}  a6 {[%clk 0:02:29]} 7. Qd2 {[%clk 0:02:51]}  c5 {[%clk 0:02:20]} 8. Nf3 {[%clk 0:02:41]}  Nc6 {[%clk 0:02:19]} 9. O-O-O {[%clk 0:02:36]}  c4 {[%clk 0:02:11]} 10. Bxe7 {[%clk 0:02:33]}  Qxe7 {[%clk 0:02:10]} 11. Qg5 {[%clk 0:02:33]}  Qf8 {[%clk 0:02:07]} 12. h5 {[%clk 0:02:32]}  h6 {[%clk 0:02:06]} 13. Qg4 {[%clk 0:02:32]}  b5 {[%clk 0:02:05]} 14. Ne2 {[%clk 0:02:31]}  b4 {[%clk 0:01:54]} 15. Rh3 {[%clk 0:02:30]}  a5 {[%clk 0:01:46]} 16. Rg3 {[%clk 0:02:29]}  Rg8 {[%clk 0:01:45]} 17. Nf4 {[%clk 0:02:27]}  Nb6 {[%clk 0:01:43]} 18. Nh4 {[%clk 0:02:02]}  a4 {[%clk 0:01:40]} 19. Kd2 {[%clk 0:01:56]}  b3 {[%clk 0:01:21]} 20. axb3 {[%clk 0:01:55]}  axb3 {[%clk 0:01:19]} 21. cxb3 {[%clk 0:01:52]}  Qb4+ {[%clk 0:01:17]} 22. Ke2 {[%clk 0:01:49]}  Ra2 {[%clk 0:01:14]} 23. Rd2 {[%clk 0:01:44]}  Nxd4+ {[%clk 0:00:58]} 24. Rxd4 {[%clk 0:01:39]}  Rxb2+ {[%clk 0:00:57]} 25. Ke3 {[%clk 0:01:16]}  Rxb3+ {[%clk 0:00:47]} 26. Nd3 {[%clk 0:01:13]}  Qe1+ {[%clk 0:00:44]} 27. Be2 {[%clk 0:01:11]}  cxd3 {[%clk 0:00:40]} 28. Rxd3 {[%clk 0:01:10]}  Nc4+ {[%clk 0:00:39]} 29. Kf4 {[%clk 0:01:07]}  Qc1+ {[%clk 0:00:32]} 30. Rde3 {[%clk 0:01:06]}  Nxe3 {[%clk 0:00:29]} 31. fxe3 {[%clk 0:01:00]}  Rb4+ {[%clk 0:00:28]} 0-1


[Site "https://www.chess.com"]

[Event "Titled Tuesday Blitz June 6 Early 2023"]
[White "Pinheiro, Iung Alicio de O."]
[Black "Djordjevic, Vuk"]
[WhiteFideId "2104350"]
[BlackFideId "902098"]
[WhiteElo "2283"]
[BlackElo "2463"]
[Result "0-1"]
[Round "2"]
[TimeControl "180+2"]
[Date "2023.06.06"]
[WhiteClock "0:00:01"]
[BlackClock "0:00:30"]
[Board "52"]

1. e4 {[%clk 0:03:00]}  d5 {[%clk 0:03:00]} 2. exd5 {[%clk 0:03:00]}  Qxd5 {[%clk 0:03:01]} 3. Nc3 {[%clk 0:03:00]}  Qd6 {[%clk 0:03:01]} 4. d4 {[%clk 0:02:57]}  Nf6 {[%clk 0:03:00]} 5. Nf3 {[%clk 0:02:57]}  c6 {[%clk 0:03:01]} 6. Ne5 {[%clk 0:02:56]}  Nbd7 {[%clk 0:03:01]} 7. f4 {[%clk 0:02:57]}  Nb6 {[%clk 0:03:00]} 8. g4 {[%clk 0:02:51]}  h5 {[%clk 0:02:51]} 9. g5 {[%clk 0:02:29]}  Ng4 {[%clk 0:02:51]} 10. h3 {[%clk 0:02:25]}  Nxe5 {[%clk 0:02:47]} 11. fxe5 {[%clk 0:02:12]}  Qg6 {[%clk 0:02:16]} 12. Bd3 {[%clk 0:01:16]}  Bf5 {[%clk 0:02:15]} 13. Bxf5 {[%clk 0:01:14]}  Qxf5 {[%clk 0:02:13]} 14. Qe2 {[%clk 0:01:14]}  e6 {[%clk 0:01:56]} 15. a3 {[%clk 0:01:14]}  O-O-O {[%clk 0:01:44]} 16. Be3 {[%clk 0:01:12]}  c5 {[%clk 0:01:45]} 17. O-O-O {[%clk 0:01:00]}  cxd4 {[%clk 0:01:02]} 18. Bxd4 {[%clk 0:01:01]}  Qf4+ {[%clk 0:00:59]} 19. Qe3 {[%clk 0:00:48]}  Rxd4 {[%clk 0:00:57]} 20. Qxf4 {[%clk 0:00:23]}  Rxf4 {[%clk 0:00:57]} 21. Nb5 {[%clk 0:00:24]}  a6 {[%clk 0:00:54]} 22. Nd4 {[%clk 0:00:10]}  Bc5 {[%clk 0:00:52]} 23. Nb3 {[%clk 0:00:09]}  Be3+ {[%clk 0:00:51]} 24. Kb1 {[%clk 0:00:09]}  Nc4 {[%clk 0:00:52]} 25. Rd3 {[%clk 0:00:08]}  Rd8 {[%clk 0:00:51]} 26. Re1 {[%clk 0:00:06]}  Bf2 {[%clk 0:00:45]} 27. Red1 {[%clk 0:00:06]}  Rxd3 {[%clk 0:00:45]} 28. cxd3 {[%clk 0:00:06]}  Nxe5 {[%clk 0:00:46]} 29. d4 {[%clk 0:00:06]}  Nc6 {[%clk 0:00:46]} 30. d5 {[%clk 0:00:05]}  exd5 {[%clk 0:00:47]} 31. Rxd5 {[%clk 0:00:06]}  Rf3 {[%clk 0:00:46]} 32. Ka2 {[%clk 0:00:05]}  h4 {[%clk 0:00:42]} 33. Nd2 {[%clk 0:00:03]}  Rxh3 {[%clk 0:00:33]} 34. Rf5 {[%clk 0:00:03]}  Be3 {[%clk 0:00:34]} 35. Ne4 {[%clk 0:00:03]}  Nd8 {[%clk 0:00:33]} 36. Nd6+ {[%clk 0:00:02]}  Kd7 {[%clk 0:00:30]} 37. Nxf7 {[%clk 0:00:02]}  Ke6 {[%clk 0:00:31]} 38. Rf1 {[%clk 0:00:01]}  Nxf7 {[%clk 0:00:30]} 0-1


[Site "https://www.chess.com"]

[Event "Titled Tuesday Blitz June 6 Early 2023"]
[White "Danielyan, Vahe"]
[Black "Liu, Casper"]
[WhiteFideId "13304828"]
[BlackFideId "1454153"]
[WhiteElo "2423"]
[BlackElo "2221"]
[Result "0-1"]
[Round "2"]
[TimeControl "180+2"]
[Date "2023.06.06"]
[WhiteClock "0:00:07"]
[BlackClock "0:00:11"]
[Board "53"]

1. d4 {[%clk 0:03:00]}  Nf6 {[%clk 0:02:56]} 2. c4 {[%clk 0:03:00]}  a6 {[%clk 0:02:57]} 3. Nc3 {[%clk 0:02:58]}  b5 {[%clk 0:02:57]} 4. cxb5 {[%clk 0:02:57]}  axb5 {[%clk 0:02:58]} 5. Nxb5 {[%clk 0:02:57]}  e5 {[%clk 0:02:59]} 6. dxe5 {[%clk 0:02:47]}  Ne4 {[%clk 0:02:59]} 7. Nc3 {[%clk 0:02:40]}  Bb4 {[%clk 0:02:59]} 8. Bd2 {[%clk 0:02:34]}  Nxd2 {[%clk 0:02:59]} 9. Qxd2 {[%clk 0:02:34]}  Nc6 {[%clk 0:03:00]} 10. Nf3 {[%clk 0:02:33]}  Qe7 {[%clk 0:03:00]} 11. e3 {[%clk 0:02:29]}  Nxe5 {[%clk 0:03:00]} 12. Be2 {[%clk 0:02:27]}  Bb7 {[%clk 0:02:58]} 13. a3 {[%clk 0:01:53]}  O-O {[%clk 0:02:43]} 14. Rd1 {[%clk 0:01:47]}  Bd6 {[%clk 0:02:41]} 15. Nb5 {[%clk 0:01:29]}  Nxf3+ {[%clk 0:02:04]} 16. Bxf3 {[%clk 0:01:29]}  Bxf3 {[%clk 0:02:04]} 17. gxf3 {[%clk 0:01:30]}  Be5 {[%clk 0:02:05]} 18. f4 {[%clk 0:01:19]}  Bxf4 {[%clk 0:02:00]} 19. Qxd7 {[%clk 0:01:13]}  Qe4 {[%clk 0:01:57]} 20. Qd5 {[%clk 0:00:50]}  Qg6 {[%clk 0:01:45]} 21. Nd4 {[%clk 0:00:41]}  Rfe8 {[%clk 0:01:29]} 22. Ke2 {[%clk 0:00:33]}  Rad8 {[%clk 0:01:20]} 23. Qc6 {[%clk 0:00:25]}  Qh5+ {[%clk 0:00:46]} 24. Qf3 {[%clk 0:00:25]}  Qe5 {[%clk 0:00:40]} 25. Rhg1 {[%clk 0:00:22]}  Rxd4 {[%clk 0:00:38]} 26. Rxd4 {[%clk 0:00:17]}  Qxd4 {[%clk 0:00:39]} 27. Qc6 {[%clk 0:00:17]}  Qd8 {[%clk 0:00:17]} 28. Rd1 {[%clk 0:00:17]}  Bd6 {[%clk 0:00:17]} 29. b4 {[%clk 0:00:15]}  Re6 {[%clk 0:00:15]} 30. b5 {[%clk 0:00:15]}  h6 {[%clk 0:00:14]} 31. a4 {[%clk 0:00:14]}  Qh4 {[%clk 0:00:12]} 32. a5 {[%clk 0:00:13]}  Qg4+ {[%clk 0:00:12]} 33. Ke1 {[%clk 0:00:11]}  Bb4+ {[%clk 0:00:12]} 34. Rd2 {[%clk 0:00:07]}  Bxd2+ {[%clk 0:00:11]} 0-1


[Site "https://www.chess.com"]

[Event "Titled Tuesday Blitz June 6 Early 2023"]
[White "Bethke, Richard"]
[Black "Kushko, Dmitriy"]
[WhiteFideId "12959243"]
[BlackFideId "14162261"]
[WhiteElo "2369"]
[BlackElo "2230"]
[Result "1-0"]
[Round "2"]
[TimeControl "180+2"]
[Date "2023.06.06"]
[WhiteClock "0:01:41"]
[BlackClock "0:00:24"]
[Board "54"]

1. e4 {[%clk 0:03:00]}  g6 {[%clk 0:03:00]} 2. d4 {[%clk 0:03:00]}  Bg7 {[%clk 0:03:00]} 3. Nf3 {[%clk 0:03:01]}  d6 {[%clk 0:03:00]} 4. Bc4 {[%clk 0:03:01]}  Nc6 {[%clk 0:03:00]} 5. O-O {[%clk 0:02:56]}  Nf6 {[%clk 0:03:00]} 6. Qe2 {[%clk 0:02:53]}  e5 {[%clk 0:03:00]} 7. dxe5 {[%clk 0:02:52]}  Nxe5 {[%clk 0:03:01]} 8. Nxe5 {[%clk 0:02:51]}  dxe5 {[%clk 0:03:00]} 9. Rd1 {[%clk 0:02:51]}  Qe7 {[%clk 0:03:00]} 10. Nc3 {[%clk 0:02:51]}  O-O {[%clk 0:02:58]} 11. a4 {[%clk 0:02:42]}  a5 {[%clk 0:02:36]} 12. b3 {[%clk 0:02:42]}  Rd8 {[%clk 0:02:32]} 13. Ba3 {[%clk 0:02:40]}  Rxd1+ {[%clk 0:02:21]} 14. Qxd1 {[%clk 0:02:41]}  Qd7 {[%clk 0:01:57]} 15. Nb5 {[%clk 0:02:29]}  Nxe4 {[%clk 0:01:34]} 16. Qe2 {[%clk 0:02:26]}  Nd6 {[%clk 0:01:07]} 17. Rd1 {[%clk 0:02:25]}  Bf8 {[%clk 0:00:58]} 18. Nxc7 {[%clk 0:01:46]}  Qxc7 {[%clk 0:00:54]} 19. Qxe5 {[%clk 0:01:45]}  Bf5 {[%clk 0:00:24]} 20. Bb2 {[%clk 0:01:41]} 1-0


[Site "https://www.chess.com"]

[Event "Titled Tuesday Blitz June 6 Early 2023"]
[White "Antal, Gergely"]
[Black "Jaskolka, Tomasz"]
[WhiteFideId "717312"]
[BlackFideId "1170791"]
[WhiteElo "2471"]
[BlackElo "2155"]
[Result "0-1"]
[Round "2"]
[TimeControl "180+2"]
[Date "2023.06.06"]
[WhiteClock "0:00:05"]
[BlackClock "0:00:05"]
[Board "55"]

1. d4 {[%clk 0:02:58]}  d5 {[%clk 0:03:00]} 2. c4 {[%clk 0:02:57]}  e5 {[%clk 0:03:00]} 3. dxe5 {[%clk 0:02:56]}  d4 {[%clk 0:03:01]} 4. Nf3 {[%clk 0:02:56]}  Nc6 {[%clk 0:03:01]} 5. a3 {[%clk 0:02:54]}  a5 {[%clk 0:03:01]} 6. e3 {[%clk 0:02:54]}  Bc5 {[%clk 0:03:01]} 7. Be2 {[%clk 0:02:53]}  Bg4 {[%clk 0:02:45]} 8. O-O {[%clk 0:02:51]}  dxe3 {[%clk 0:02:44]} 9. Bxe3 {[%clk 0:02:49]}  Bxe3 {[%clk 0:02:44]} 10. fxe3 {[%clk 0:02:48]}  Qxd1 {[%clk 0:02:44]} 11. Rxd1 {[%clk 0:02:48]}  Nge7 {[%clk 0:02:43]} 12. h3 {[%clk 0:02:44]}  Bxf3 {[%clk 0:02:40]} 13. Bxf3 {[%clk 0:02:45]}  Nxe5 {[%clk 0:02:37]} 14. Nc3 {[%clk 0:02:24]}  Nxc4 {[%clk 0:02:27]} 15. Nb5 {[%clk 0:02:24]}  O-O {[%clk 0:02:24]} 16. Rd7 {[%clk 0:02:15]}  Nc6 {[%clk 0:02:15]} 17. Rxc7 {[%clk 0:02:10]}  Nxb2 {[%clk 0:02:03]} 18. Rxb7 {[%clk 0:02:08]}  Ne5 {[%clk 0:01:59]} 19. Bd5 {[%clk 0:01:54]}  Rab8 {[%clk 0:01:53]} 20. Rxb8 {[%clk 0:01:43]}  Rxb8 {[%clk 0:01:52]} 21. Nd4 {[%clk 0:01:30]}  Nbc4 {[%clk 0:01:48]} 22. e4 {[%clk 0:01:23]}  Kf8 {[%clk 0:01:40]} 23. Nf3 {[%clk 0:01:03]}  Rb2 {[%clk 0:01:32]} 24. Nxe5 {[%clk 0:00:59]}  Nxe5 {[%clk 0:01:31]} 25. Rc1 {[%clk 0:00:48]}  Ke7 {[%clk 0:01:14]} 26. Rc5 {[%clk 0:00:41]}  Kf6 {[%clk 0:00:42]} 27. Rxa5 {[%clk 0:00:41]}  Kg5 {[%clk 0:00:39]} 28. Bxf7 {[%clk 0:00:40]}  Kf4 {[%clk 0:00:40]} 29. Kf1 {[%clk 0:00:20]}  Ke3 {[%clk 0:00:36]} 30. Kg1 {[%clk 0:00:06]}  Nxf7 {[%clk 0:00:34]} 31. Ra7 {[%clk 0:00:07]}  Ng5 {[%clk 0:00:19]} 32. Rxg7 {[%clk 0:00:07]}  h6 {[%clk 0:00:16]} 33. e5 {[%clk 0:00:08]}  Rb5 {[%clk 0:00:15]} 34. e6 {[%clk 0:00:06]}  Nxe6 {[%clk 0:00:13]} 35. Rg6 {[%clk 0:00:07]}  Nf4 {[%clk 0:00:13]} 36. Rxh6 {[%clk 0:00:07]}  Rb1+ {[%clk 0:00:13]} 37. Kh2 {[%clk 0:00:07]}  Rb2 {[%clk 0:00:13]} 38. Rh8 {[%clk 0:00:07]}  Rxg2+ {[%clk 0:00:13]} 39. Kh1 {[%clk 0:00:07]}  Kf3 {[%clk 0:00:10]} 40. Rb8 {[%clk 0:00:08]}  Rd2 {[%clk 0:00:08]} 41. Rb3+ {[%clk 0:00:08]}  Nd3 {[%clk 0:00:08]} 42. Rb8 {[%clk 0:00:06]}  Nf2+ {[%clk 0:00:04]} 43. Kg1 {[%clk 0:00:05]}  Rd1+ {[%clk 0:00:05]} 44. Kh2 {[%clk 0:00:05]}  Rh1# {[%clk 0:00:05]} 0-1


[Site "https://www.chess.com"]